fUST/lending_fUST_20260219
["ID","MTS","AMOUNT","RATE_DAILY","PERIOD"]
[405996189,1771513855830,-500.0,0.00034794,19]
[405996190,1771513855840,-500.0,0.00034794,19]
[405996191,1771513855850,-337.94156556,0.00034794,19]
[405996192,1771513855859,-500.0,0.00034794,19]
[405996193,1771513855869,-500.0,0.00034794,19]
[405996194,1771513855878,-500.0,0.00034794,19]
[405996195,1771513855888,-500.0,0.00034794,19]
[405996196,1771513855898,-500.0,0.00034794,19]
[405996197,1771513855907,-1630.26,0.00034794,7]
[405996198,1771513855918,-500.0,0.00034794,19]
[405996199,1771513855929,-24584.14,0.00034794,19]
[405996200,1771513855939,-494.98770668,0.00034794,19]
[405996201,1771513855948,-1543.16,0.00034794,19]
[405996202,1771513855958,-560.56,0.00034794,19]
[405996203,1771513855967,-725.24,0.00034794,19]
[405996204,1771513855977,-500.0,0.00034794,19]
[405996205,1771513855986,-500.0,0.00034794,19]
[405996206,1771513855995,-500.0,0.00034794,19]
[405996207,1771513856005,-500.0,0.00034794,19]
[405996208,1771513856014,-2878.51,0.00034794,19]
[405996209,1771513856024,-1043.65,0.00034794,19]
[405996210,1771513856034,-818.31,0.00034794,19]
[405996211,1771513856043,-5008.63,0.00034794,19]
[405996212,1771513856053,-500.0,0.00034794,19]
[405996213,1771513856063,-1438.91,0.00034794,19]
[405996214,1771513856072,-500.0,0.00034794,19]
[405996215,1771513856082,-906.95,0.00034794,19]
[405996216,1771513856092,-500.35,0.00034794,2]
[405996217,1771513856102,-686.13,0.00034794,19]
[405996218,1771513856173,-964.82,0.00034794,19]
[405996219,1771513856183,-500.0,0.00034794,19]
[405996220,1771513856193,-797.79,0.00034794,19]
[405996221,1771513856203,-500.0,0.00034794,19]
[405996222,1771513856213,-500.0,0.00034794,19]
[405996223,1771513856223,-500.0,0.00034794,19]
[405996224,1771513856232,-500.0,0.00034794,19]
[405996225,1771513856242,-27640.11,0.000348,14]
[405996226,1771513856251,-1822.21427944,0.00034924,14]
[405996227,1771513856261,-160.0,0.00035,120]
[405996228,1771513856270,-150.0,0.00035,69]
[405996229,1771513856280,-743.60641596,0.00035,7]
[405996230,1771513856289,-500.0,0.00035068,19]
[405996231,1771513856299,-739.72,0.00035068,19]
[405996232,1771513856308,-500.0,0.00035068,19]
[405996233,1771513856317,-500.0,0.00035068,19]
[405996234,1771513856327,-500.0,0.00035068,19]
[405996235,1771513856337,-617.43,0.00035068,19]
[405996236,1771513856346,-1590.52,0.00035068,19]
[405996237,1771513856357,-500.0,0.00035068,19]
[405996238,1771513856367,-500.0,0.00035068,19]
[405996239,1771513856377,-500.0,0.00035068,19]
[405996240,1771513856387,-500.0,0.00035068,19]
[405996241,1771513856398,-500.0,0.00035068,19]
[405996242,1771513856408,-500.0,0.00035068,19]
[405996243,1771513856417,-500.0,0.00035068,19]
[405996244,1771513856426,-500.0,0.00035068,19]
[405996245,1771513856437,-500.0,0.00035068,19]
[405996246,1771513856447,-500.0,0.00035068,19]
[405996247,1771513856456,-1630.26,0.00035068,7]
[405996248,1771513856466,-500.0,0.00035068,19]
[405996249,1771513856475,-24584.14,0.00035068,19]
[405996250,1771513856485,-1543.16,0.00035068,19]
[405996251,1771513856495,-560.56,0.00035068,19]
[405996252,1771513856504,-725.24,0.00035068,19]
[405996253,1771513856514,-500.0,0.00035068,19]
[405996254,1771513856524,-500.0,0.00035068,19]
[405996255,1771513856534,-500.0,0.00035068,19]
[405996256,1771513856542,-500.0,0.00035068,19]
[405996257,1771513856553,-2878.51,0.00035068,19]
[405996258,1771513856562,-1043.65,0.00035068,19]
[405996259,1771513856572,-818.31,0.00035068,19]
[405996260,1771513856581,-5008.63,0.00035068,19]
[405996261,1771513856593,-500.0,0.00035068,19]
[405996262,1771513856602,-1438.91,0.00035068,19]
[405996263,1771513856611,-500.0,0.00035068,19]
[405996264,1771513856622,-906.95,0.00035068,19]
[405996265,1771513856631,-500.35,0.00035068,2]
[405996266,1771513856641,-686.13,0.00035068,19]
[405996267,1771513856651,-964.82,0.00035068,19]
[405996268,1771513856661,-500.0,0.00035068,19]
[405996269,1771513856670,-797.79,0.00035068,19]
[405996270,1771513856679,-500.0,0.00035068,19]
[405996271,1771513856689,-500.0,0.00035068,19]
[405996272,1771513856698,-500.0,0.00035068,19]
[405996273,1771513856708,-500.0,0.00035068,19]
[405996274,1771513856717,-331.03506921,0.0003526,7]
[405996275,1771513856726,-500.0,0.00035342,19]
[405996276,1771513856736,-739.72,0.00035342,19]
[405996277,1771513856746,-500.0,0.00035342,19]
[405996278,1771513856755,-500.0,0.00035342,19]
[405996279,1771513856764,-500.0,0.00035342,19]
[405996280,1771513856774,-617.43,0.00035342,19]
[405996281,1771513856784,-1590.52,0.00035342,19]
[405996282,1771513856793,-500.0,0.00035342,19]
[405996283,1771513856803,-500.0,0.00035342,19]
[405996284,1771513856813,-500.0,0.00035342,19]
[405996285,1771513856822,-500.0,0.00035342,19]
[405996286,1771513856831,-500.0,0.00035342,19]
[405996287,1771513856842,-500.0,0.00035342,19]
[405996288,1771513856851,-500.0,0.00035342,19]
[405996289,1771513856860,-500.0,0.00035342,19]
[405996290,1771513856870,-500.0,0.00035342,19]
[405996291,1771513856880,-500.0,0.00035342,19]
[405996292,1771513856889,-1630.26,0.00035342,7]
[405996293,1771513856900,-500.0,0.00035342,19]
[405996294,1771513856910,-24584.14,0.00035342,19]
[405996295,1771513856920,-1543.16,0.00035342,19]
[405996296,1771513856929,-560.56,0.00035342,19]
[405996297,1771513856939,-725.24,0.00035342,19]
[405996298,1771513856949,-162.59476327,0.00035342,19]
[405996299,1771513856958,-500.0,0.00035342,19]
[405996300,1771513856967,-500.0,0.00035342,19]
[405996301,1771513856976,-500.0,0.00035342,19]
[405996302,1771513856985,-2878.51,0.00035342,19]
[405996303,1771513856995,-1043.65,0.00035342,19]
[405996304,1771513857004,-818.31,0.00035342,19]
[405996305,1771513857014,-5008.63,0.00035342,19]
[405996306,1771513857023,-500.0,0.00035342,19]
[405996307,1771513857033,-1438.91,0.00035342,19]
[405996308,1771513857043,-500.0,0.00035342,19]
[405996309,1771513857052,-906.95,0.00035342,19]
[405996310,1771513857062,-500.35,0.00035342,2]
[405996311,1771513857072,-686.13,0.00035342,19]
[405996312,1771513857082,-964.82,0.00035342,19]
[405996313,1771513857091,-569.7265809,0.00035342,19]
[405996314,1771513857101,-797.79,0.00035342,19]
[405996315,1771513857111,-500.0,0.00035342,19]
[405996316,1771513857120,-500.0,0.00035342,19]
[405996317,1771513857131,-500.0,0.00035342,19]
[405996318,1771513857140,-500.0,0.00035342,19]
[405996319,1771513857205,-1509.15,0.000354,120]
[405996320,1771513857216,-260896.03323685,0.00035444,2]
[405996321,1771513857225,-12286.87580213,0.00035532,2]
[405996322,1771513857235,-183.96392734,0.00035547,30]
[405996323,1771513857244,-865.89314433,0.00035611,2]
[405996324,1771513857254,-500.0,0.00035616,19]
[405996325,1771513857263,-739.72,0.00035616,19]
[405996326,1771513857274,-500.0,0.00035616,19]
[405996327,1771513857283,-500.0,0.00035616,19]
[405996328,1771513857292,-500.0,0.00035616,19]
[405996329,1771513857302,-617.43,0.00035616,19]
[405996330,1771513857312,-1590.52,0.00035616,19]
[405996331,1771513857322,-500.0,0.00035616,19]
[405996332,1771513857332,-500.0,0.00035616,19]
[405996333,1771513857341,-500.0,0.00035616,19]
[405996334,1771513857351,-500.0,0.00035616,19]
[405996335,1771513857361,-500.0,0.00035616,19]
[405996336,1771513857374,-500.0,0.00035616,19]
[405996337,1771513857383,-500.0,0.00035616,19]
[405996338,1771513857392,-500.0,0.00035616,19]
[405996339,1771513857402,-500.0,0.00035616,19]
[405996340,1771513857414,-500.0,0.00035616,19]
[405996341,1771513857423,-1630.26,0.00035616,7]
[405996342,1771513857434,-500.0,0.00035616,19]
[405996343,1771513857444,-24584.14,0.00035616,19]
[405996344,1771513857454,-1543.16,0.00035616,19]
[405996345,1771513857465,-560.56,0.00035616,19]
[405996346,1771513857477,-725.24,0.00035616,19]
[405996347,1771513857488,-500.0,0.00035616,19]
[405996348,1771513857498,-500.0,0.00035616,19]
[405996349,1771513857508,-500.0,0.00035616,19]
[405996350,1771513857517,-2878.51,0.00035616,19]
[405996351,1771513857526,-1866.49,0.00035616,120]
[405996352,1771513857535,-1043.65,0.00035616,19]
[405996353,1771513857546,-818.31,0.00035616,19]
[405996354,1771513857557,-5008.63,0.00035616,19]
[405996355,1771513857568,-500.0,0.00035616,19]
[405996356,1771513857578,-1438.91,0.00035616,19]
[405996357,1771513857588,-500.0,0.00035616,19]
[405996358,1771513857598,-906.95,0.00035616,19]
[405996359,1771513857607,-500.35,0.00035616,2]
[405996360,1771513857617,-686.13,0.00035616,19]
[405996361,1771513857626,-964.82,0.00035616,19]
[405996362,1771513857635,-797.79,0.00035616,19]
[405996363,1771513857644,-500.0,0.00035616,19]
[405996364,1771513857654,-500.0,0.00035616,19]
[405996365,1771513857677,-500.0,0.00035616,19]
[405996366,1771513857695,-500.0,0.00035616,19]
[405996367,1771513857716,-329.93056983,0.00035616,2]
[405996368,1771513857737,-3158.78363017,0.000357,6]
[405996369,1771513857756,-611.4,0.000357,30]
[405996370,1771513857775,-295702.35925721,0.00035802,2]
[405996371,1771513857794,-800.0,0.00035811,7]
[405996372,1771513857808,-183.96392734,0.00035833,30]
[405996373,1771513857828,-186.31255147,0.00035888,19]
[405996374,1771513857848,-500.0,0.0003589,19]
[405996375,1771513857865,-739.72,0.0003589,19]
[405996376,1771513857879,-500.0,0.0003589,19]
[405996377,1771513857898,-500.0,0.0003589,19]
[405996378,1771513857914,-500.0,0.0003589,19]
[405996379,1771513857927,-617.43,0.0003589,19]
[405996380,1771513857942,-1590.52,0.0003589,19]
[405996381,1771513857957,-500.0,0.0003589,19]
[405996382,1771513857971,-500.0,0.0003589,19]
[405996383,1771513857987,-500.0,0.0003589,19]
[405996384,1771513858001,-500.0,0.0003589,19]
[405996385,1771513858016,-500.0,0.0003589,19]
[405996386,1771513858030,-500.0,0.0003589,19]
[405996387,1771513858044,-500.0,0.0003589,19]
[405996388,1771513858059,-500.0,0.0003589,19]
[405996389,1771513858073,-500.0,0.0003589,19]
[405996390,1771513858087,-500.0,0.0003589,19]
[405996391,1771513858101,-1630.26,0.0003589,7]
[405996392,1771513858116,-500.0,0.0003589,19]
[405996393,1771513858131,-24584.14,0.0003589,19]
[405996394,1771513858146,-1543.16,0.0003589,19]
[405996395,1771513858160,-560.56,0.0003589,19]
[405996396,1771513858173,-725.24,0.0003589,19]
[405996397,1771513858188,-338.95957919,0.0003589,19]
[405996398,1771513858202,-500.0,0.0003589,19]
[405996399,1771513858216,-500.0,0.0003589,19]
[405996400,1771513858231,-2878.51,0.0003589,19]
[405996401,1771513858246,-1043.65,0.0003589,19]
[405996402,1771513858261,-818.31,0.0003589,19]
[405996403,1771513858278,-5008.63,0.0003589,19]
[405996404,1771513858294,-500.0,0.0003589,19]
[405996405,1771513858309,-1438.91,0.0003589,19]
[405996406,1771513858325,-500.0,0.0003589,19]
[405996407,1771513858337,-906.95,0.0003589,19]
[405996408,1771513858347,-500.35,0.0003589,2]
[405996409,1771513858357,-686.13,0.0003589,19]
[405996410,1771513858368,-964.82,0.0003589,19]
[405996411,1771513858484,-797.79,0.0003589,19]
[405996412,1771513858496,-500.0,0.0003589,19]
[405996413,1771513858508,-500.0,0.0003589,19]
[405996414,1771513858518,-500.0,0.0003589,19]
[405996415,1771513858528,-500.0,0.0003589,19]
[405996416,1771513858537,-500.0,0.0003591,30]
[405996417,1771513858547,-800.0,0.00035915,7]
[405996418,1771513858558,-21923.14223257,0.00035982,2]
[405996419,1771513858567,-161.0,0.00036,84]
[405996420,1771513858576,-24976.39390571,0.00036,15]
[405996421,1771513858586,-800.0,0.00036028,7]
[405996422,1771513858595,-630.0,0.00036066,2]
[405996423,1771513858605,-1839.66980336,0.00036072,7]
[405996424,1771513858614,-3277.49,0.000361,14]
[405996425,1771513858624,-743.60641596,0.000361,7]
[405996426,1771513858633,-1937.53940216,0.00036113,14]
[405996427,1771513858643,-183.96392734,0.0003612,30]
[405996428,1771513858652,-800.0,0.00036137,7]
[405996429,1771513858662,-160.0,0.0003614,5]
[405996430,1771513858671,-160.0,0.0003614,3]
[405996431,1771513858680,-161.18552717,0.0003614,5]
[405996432,1771513858689,-500.0,0.00036164,19]
[405996433,1771513858698,-739.72,0.00036164,19]
[405996434,1771513858707,-500.0,0.00036164,19]
[405996435,1771513858716,-500.0,0.00036164,19]
[405996436,1771513858726,-500.0,0.00036164,19]
[405996437,1771513858735,-617.43,0.00036164,19]
[405996438,1771513858744,-1590.52,0.00036164,19]
[405996439,1771513858754,-500.0,0.00036164,19]
[405996440,1771513858763,-500.0,0.00036164,19]
[405996441,1771513858773,-500.0,0.00036164,19]
[405996442,1771513858782,-500.0,0.00036164,19]
[405996443,1771513858791,-500.0,0.00036164,19]
[405996444,1771513858800,-500.0,0.00036164,19]
[405996445,1771513858810,-500.0,0.00036164,19]
[405996446,1771513858818,-500.0,0.00036164,19]
[405996447,1771513858827,-500.0,0.00036164,19]
[405996448,1771513858837,-500.0,0.00036164,19]
[405996449,1771513858846,-1630.26,0.00036164,7]
[405996450,1771513858856,-341.641002,0.00036164,19]
[405996451,1771513858866,-24584.14,0.00036164,19]
[405996452,1771513858875,-1543.16,0.00036164,19]
[405996453,1771513858885,-560.56,0.00036164,19]
[405996454,1771513858895,-725.24,0.00036164,19]
[405996455,1771513858905,-500.0,0.00036164,19]
[405996456,1771513858914,-630.88723095,0.00036164,19]
[405996457,1771513858923,-2878.51,0.00036164,19]
[405996458,1771513858932,-1043.65,0.00036164,19]
[405996459,1771513858942,-818.31,0.00036164,19]
[405996460,1771513858952,-5008.63,0.00036164,19]
[405996461,1771513858962,-500.0,0.00036164,19]
[405996462,1771513858971,-1438.91,0.00036164,19]
[405996463,1771513858980,-500.0,0.00036164,19]
[405996464,1771513858990,-906.95,0.00036164,19]
[405996465,1771513859000,-500.35,0.00036164,2]
[405996466,1771513859010,-686.13,0.00036164,19]
[405996467,1771513859020,-964.82,0.00036164,19]
[405996468,1771513859030,-797.79,0.00036164,19]
[405996469,1771513859040,-500.0,0.00036164,19]
[405996470,1771513859049,-500.0,0.00036164,19]
[405996471,1771513859058,-645.62508455,0.00036164,19]
[405996472,1771513859068,-500.0,0.00036164,19]
[405996473,1771513859076,-765.68135518,0.00036175,7]
[405996474,1771513859086,-1509.15,0.000363,120]
[405996475,1771513859096,-222.02,0.00036323,30]
[405996476,1771513859105,-800.0,0.00036388,7]
[405996477,1771513859115,-81980.0,0.000364,120]
[405996478,1771513859124,-220.65671281,0.00036406,30]
[405996479,1771513859133,-500.0,0.00036438,19]
[405996480,1771513859143,-739.72,0.00036438,19]
[405996481,1771513859152,-500.0,0.00036438,19]
[405996482,1771513859162,-500.0,0.00036438,19]
[405996483,1771513859171,-500.0,0.00036438,19]
[405996484,1771513859180,-617.43,0.00036438,19]
[405996485,1771513859190,-1590.52,0.00036438,19]
[405996486,1771513859199,-357.82322778,0.00036438,19]
[405996487,1771513859208,-500.0,0.00036438,19]
[405996488,1771513859218,-500.0,0.00036438,19]
[405996489,1771513859228,-500.0,0.00036438,19]
[405996490,1771513859238,-500.0,0.00036438,19]
[405996491,1771513859248,-500.0,0.00036438,19]
[405996492,1771513859259,-500.0,0.00036438,19]
[405996493,1771513859268,-500.0,0.00036438,19]
[405996494,1771513859278,-500.0,0.00036438,19]
[405996495,1771513859291,-500.0,0.00036438,19]
[405996496,1771513859300,-1630.26,0.00036438,7]
[405996497,1771513859311,-24584.14,0.00036438,19]
[405996498,1771513859322,-1543.16,0.00036438,19]
[405996499,1771513859333,-560.56,0.00036438,19]
[405996500,1771513859344,-725.24,0.00036438,19]
[405996501,1771513859353,-500.0,0.00036438,19]
[405996502,1771513859363,-2878.51,0.00036438,19]
[405996503,1771513859376,-1043.65,0.00036438,19]
[405996504,1771513859385,-818.31,0.00036438,19]
[405996505,1771513859395,-5008.63,0.00036438,19]
[405996506,1771513859404,-500.0,0.00036438,19]
[405996507,1771513859415,-1438.91,0.00036438,19]
[405996508,1771513859424,-500.0,0.00036438,19]
[405996509,1771513859434,-906.95,0.00036438,19]
[405996510,1771513859446,-500.35,0.00036438,2]
[405996511,1771513859455,-686.13,0.00036438,19]
[405996512,1771513859464,-964.82,0.00036438,19]
[405996513,1771513859474,-797.79,0.00036438,19]
[405996514,1771513859483,-500.0,0.00036438,19]
[405996515,1771513859493,-500.0,0.00036438,19]
[405996516,1771513859502,-319421.00825083,0.00036531,2]
[405996517,1771513859512,-225.594,0.00036572,2]
[405996518,1771513859521,-2000.0,0.00036603,2]
[405996519,1771513859531,-2010.16879863,0.00036632,7]
[405996520,1771513859541,-800.0,0.00036671,7]
[405996521,1771513859550,-316.46897351,0.000367,2]
[405996522,1771513859560,-316.46897351,0.000367,2]
[405996523,1771513859572,-500.0,0.00036712,19]
[405996524,1771513859583,-739.72,0.00036712,19]
[405996525,1771513859592,-609.30556053,0.00036712,19]
[405996526,1771513859602,-500.0,0.00036712,19]
[405996527,1771513859612,-500.0,0.00036712,19]
[405996528,1771513859622,-617.43,0.00036712,19]
[405996529,1771513859631,-1590.52,0.00036712,19]
[405996530,1771513859640,-500.0,0.00036712,19]
[405996531,1771513859649,-500.0,0.00036712,19]
[405996532,1771513859659,-500.0,0.00036712,19]
[405996533,1771513859669,-500.0,0.00036712,19]
[405996534,1771513859679,-500.0,0.00036712,19]
[405996535,1771513859692,-500.0,0.00036712,19]
[405996536,1771513859702,-500.0,0.00036712,19]
[405996537,1771513859713,-500.0,0.00036712,19]
[405996538,1771513859723,-500.0,0.00036712,19]
[405996539,1771513859733,-1630.26,0.00036712,7]
[405996540,1771513859743,-24584.14,0.00036712,19]
[405996541,1771513859753,-1543.16,0.00036712,19]
[405996542,1771513859763,-560.56,0.00036712,19]
[405996543,1771513859772,-725.24,0.00036712,19]
[405996544,1771513859781,-383.95225871,0.00036712,19]
[405996545,1771513859791,-2878.51,0.00036712,19]
[405996546,1771513859800,-1043.65,0.00036712,19]
[405996547,1771513859810,-818.31,0.00036712,19]
[405996548,1771513859821,-5008.63,0.00036712,19]
[405996549,1771513859831,-500.0,0.00036712,19]
[405996550,1771513859841,-1438.91,0.00036712,19]
[405996551,1771513859851,-500.0,0.00036712,19]
[405996552,1771513859860,-906.95,0.00036712,19]
[405996553,1771513859870,-500.35,0.00036712,2]
[405996554,1771513859879,-686.13,0.00036712,19]
[405996555,1771513859889,-964.82,0.00036712,19]
[405996556,1771513859899,-797.79,0.00036712,19]
[405996557,1771513859908,-500.0,0.00036712,19]
[405996558,1771513859917,-500.0,0.00036712,19]
[405996559,1771513859926,-665.14993413,0.00036769,120]
[405996560,1771513859936,-173.0,0.000369,120]
[405996561,1771513859945,-167.0,0.000369,120]
[405996562,1771513859954,-500.0,0.00036986,19]
[405996563,1771513859963,-739.72,0.00036986,19]
[405996564,1771513859973,-500.0,0.00036986,19]
[405996565,1771513859983,-500.0,0.00036986,19]
[405996566,1771513859992,-617.43,0.00036986,19]
[405996567,1771513860001,-1590.52,0.00036986,19]
[405996568,1771513860011,-500.0,0.00036986,19]
[405996569,1771513860020,-179.26119446,0.00036986,19]
[405996570,1771513860030,-500.0,0.00036986,19]
[405996571,1771513860040,-528.24843682,0.00036986,19]
[405996572,1771513860050,-500.0,0.00036986,19]
[405996573,1771513860059,-409.85013519,0.00036986,19]
[405996574,1771513860068,-500.0,0.00036986,19]
[405996575,1771513860077,-500.0,0.00036986,19]
[405996576,1771513860087,-500.0,0.00036986,19]
[405996577,1771513860096,-1630.26,0.00036986,7]
[405996578,1771513860106,-24584.14,0.00036986,19]
[405996579,1771513860115,-1543.16,0.00036986,19]
[405996580,1771513860124,-560.56,0.00036986,19]
[405996581,1771513860133,-725.24,0.00036986,19]
[405996582,1771513860220,-2878.51,0.00036986,19]
[405996583,1771513860232,-1866.49,0.00036986,120]
[405996584,1771513860244,-1043.65,0.00036986,19]
[405996585,1771513860253,-818.31,0.00036986,19]
[405996586,1771513860263,-5008.63,0.00036986,19]
[405996587,1771513860272,-500.0,0.00036986,19]
[405996588,1771513860281,-1438.91,0.00036986,19]
[405996589,1771513860291,-500.0,0.00036986,19]
[405996590,1771513860300,-906.95,0.00036986,19]
[405996591,1771513860310,-500.35,0.00036986,2]
[405996592,1771513860319,-686.13,0.00036986,19]
[405996593,1771513860329,-964.82,0.00036986,19]
[405996594,1771513860340,-797.79,0.00036986,19]
[405996595,1771513860349,-500.0,0.00036986,19]
[405996596,1771513860358,-349.32496747,0.00036986,19]
[405996597,1771513860370,-2051.73887577,0.00037,2]
[405996598,1771513860379,-600.0,0.00037,120]
[405996599,1771513860389,-500.0,0.00037,120]
[405996600,1771513860398,-200.0,0.00037,120]
[405996601,1771513860408,-1031.99807096,0.00037,7]
[405996602,1771513860418,-151.0,0.00037002,41]
[405996603,1771513860428,-720.0,0.00037193,30]
[405996604,1771513860438,-1509.15,0.000372,120]
[405996605,1771513860450,-500.0,0.0003726,19]
[405996606,1771513860459,-739.72,0.0003726,19]
[405996607,1771513860469,-500.0,0.0003726,19]
[405996608,1771513860479,-480.86853477,0.0003726,19]
[405996609,1771513860488,-617.43,0.0003726,19]
[405996610,1771513860497,-1590.52,0.0003726,19]
[405996611,1771513860507,-391.58007973,0.0003726,19]
[405996612,1771513860516,-500.0,0.0003726,19]
[405996613,1771513860526,-500.0,0.0003726,19]
[405996614,1771513860535,-453.17783774,0.0003726,19]
[405996615,1771513860545,-500.0,0.0003726,19]
[405996616,1771513860555,-500.0,0.0003726,19]
[405996617,1771513860564,-1630.26,0.0003726,7]
[405996618,1771513860574,-24584.14,0.0003726,19]
[405996619,1771513860583,-1543.16,0.0003726,19]
[405996620,1771513860594,-560.56,0.0003726,19]
[405996621,1771513860603,-725.24,0.0003726,19]
[405996622,1771513860613,-2878.51,0.0003726,19]
[405996623,1771513860622,-1043.65,0.0003726,19]
[405996624,1771513860631,-818.31,0.0003726,19]
[405996625,1771513860640,-5008.63,0.0003726,19]
[405996626,1771513860650,-500.0,0.0003726,19]
[405996627,1771513860659,-1438.91,0.0003726,19]
[405996628,1771513860668,-306.64850873,0.0003726,19]
[405996629,1771513860678,-906.95,0.0003726,19]
[405996630,1771513860688,-500.35,0.0003726,2]
[405996631,1771513860697,-686.13,0.0003726,19]
[405996632,1771513860707,-964.82,0.0003726,19]
[405996633,1771513860716,-797.79,0.0003726,19]
[405996634,1771513860726,-355.08290283,0.0003726,19]
[405996635,1771513860736,-2139.35836692,0.00037303,14]
[405996636,1771513860746,-12286.87580213,0.00037465,2]
[405996637,1771513860755,-500.0,0.00037534,19]
[405996638,1771513860765,-739.72,0.00037534,19]
[405996639,1771513860775,-500.0,0.00037534,19]
[405996640,1771513860784,-617.43,0.00037534,19]
[405996641,1771513860794,-1590.52,0.00037534,19]
[405996642,1771513860803,-500.0,0.00037534,19]
[405996643,1771513860813,-500.0,0.00037534,19]
[405996644,1771513860822,-500.0,0.00037534,19]
[405996645,1771513860832,-500.0,0.00037534,19]
[405996646,1771513860842,-1630.26,0.00037534,7]
[405996647,1771513860852,-24584.14,0.00037534,19]
[405996648,1771513860862,-1543.16,0.00037534,19]
[405996649,1771513860872,-560.56,0.00037534,19]
[405996650,1771513860881,-725.24,0.00037534,19]
[405996651,1771513860891,-2878.51,0.00037534,19]
[405996652,1771513860900,-1043.65,0.00037534,19]
[405996653,1771513860909,-818.31,0.00037534,19]
[405996654,1771513860919,-5008.63,0.00037534,19]
[405996655,1771513860928,-565.00062464,0.00037534,19]
[405996656,1771513860938,-1438.91,0.00037534,19]
[405996657,1771513860947,-906.95,0.00037534,19]
[405996658,1771513860957,-500.35,0.00037534,2]
[405996659,1771513860967,-686.13,0.00037534,19]
[405996660,1771513860976,-964.82,0.00037534,19]
[405996661,1771513860986,-797.79,0.00037534,19]
[405996662,1771513860995,-1000.0,0.000376,30]
[405996663,1771513861004,-200.0,0.000376,30]
[405996664,1771513861013,-56402.97323756,0.00037672,2]
[405996665,1771513861139,-4232.41776244,0.00037672,2]
[405996666,1771513861149,-1444.0,0.00037753,120]
[405996667,1771513861159,-1644.64587885,0.00037765,7]
[405996668,1771513861168,-1025.26749927,0.000378,2]
[405996669,1771513861178,-165.84310802,0.00037808,19]
[405996670,1771513861188,-739.72,0.00037808,19]
[405996671,1771513861197,-500.0,0.00037808,19]
[405996672,1771513861207,-617.43,0.00037808,19]
[405996673,1771513861216,-1590.52,0.00037808,19]
[405996674,1771513861226,-477.96190917,0.00037808,19]
[405996675,1771513861235,-500.0,0.00037808,19]
[405996676,1771513861244,-500.0,0.00037808,19]
[405996677,1771513861253,-443.14646437,0.00037808,19]
[405996678,1771513861263,-1630.26,0.00037808,7]
[405996679,1771513861272,-24584.14,0.00037808,19]
[405996680,1771513861281,-1543.16,0.00037808,19]
[405996681,1771513861290,-560.56,0.00037808,19]
[405996682,1771513861299,-725.24,0.00037808,19]
[405996683,1771513861308,-2878.51,0.00037808,19]
[405996684,1771513861318,-1043.65,0.00037808,19]
[405996685,1771513861327,-818.31,0.00037808,19]
[405996686,1771513861337,-5008.63,0.00037808,19]
[405996687,1771513861348,-1438.91,0.00037808,19]
[405996688,1771513861357,-906.95,0.00037808,19]